fUSD/lending_fUSD_20250119
["ID","MTS","AMOUNT","RATE_DAILY","PERIOD"]
[349573891,1737304234392,-500.0,0.00019997,2]
[349573893,1737304234401,-500.0,0.00019997,2]
[349573895,1737304234411,-500.0,0.00019997,2]
[349573897,1737304234422,-500.0,0.00019997,2]
[349573898,1737304234432,-500.0,0.00019997,2]
[349573899,1737304234441,-500.0,0.00019997,2]
[349573900,1737304234450,-959.32,0.00019997,2]
[349573901,1737304234460,-1914.53,0.00019997,2]
[349573902,1737304234468,-500.0,0.00019997,2]
[349573903,1737304234477,-500.0,0.00019997,2]
[349573904,1737304234486,-500.0,0.00019997,2]
[349573905,1737304234496,-500.0,0.00019997,2]
[349573906,1737304234505,-500.0,0.00019997,2]
[349573907,1737304234514,-500.0,0.00019997,2]
[349573909,1737304234524,-500.0,0.00019997,2]
[349573911,1737304234533,-1332.25,0.00019997,2]
[349573913,1737304234543,-500.0,0.00019997,2]
[349573915,1737304234552,-500.0,0.00019997,2]
[349573917,1737304234561,-634.48169462,0.00019997,2]
[349573919,1737304234570,-500.0,0.00019997,2]
[349573921,1737304234580,-500.0,0.00019997,2]
[349573923,1737304234589,-500.0,0.00019997,2]
[349573925,1737304234599,-500.0,0.00019997,2]
[349573927,1737304234609,-469.28,0.00019997,2]
[349573929,1737304234620,-322.29121557,0.00019997,2]
[349573931,1737304234632,-243.5977718,0.00019997,2]
[349573933,1737304234641,-500.0,0.00019997,2]
[349573935,1737304234651,-500.0,0.00019997,2]
[349573936,1737304234660,-500.0,0.00019998,2]
[349573938,1737304234669,-500.0,0.00019998,2]
[349573941,1737304234679,-500.0,0.00019998,2]
[349573942,1737304234688,-500.0,0.00019998,2]
[349573944,1737304234698,-500.0,0.00019998,2]
[349573946,1737304234707,-270.0,0.0002,2]
[349573948,1737304234715,-1471.25097398,0.00020049,2]
[349573950,1737304234724,-287.0,0.00020105,2]
[349573952,1737304234734,-216.727777,0.00020171,2]
[349573954,1737304234743,-500.0,0.00020171,2]
[349573956,1737304234752,-500.0,0.00020171,2]
[349573959,1737304234761,-520.92,0.00020171,2]
[349573961,1737304234770,-500.0,0.00020171,2]
[349573963,1737304234780,-868.88,0.00020171,2]
[349573964,1737304234789,-500.0,0.00020171,2]
[349573966,1737304234798,-747.56,0.00020171,2]
[349573968,1737304234808,-752.5,0.00020171,2]
[349573970,1737304234817,-465.315771,0.00020171,2]
[349573972,1737304234826,-500.0,0.00020171,2]
[349573974,1737304234836,-949.29,0.00020171,2]
[349573976,1737304234844,-500.0,0.00020171,2]
[349573978,1737304234853,-858.3,0.00020171,2]
[349573980,1737304234863,-500.0,0.00020171,2]
[349573982,1737304234874,-500.0,0.00020171,2]
[349573984,1737304234883,-500.0,0.00020171,2]
[349573986,1737304234892,-1234.62,0.00020171,2]
[349573988,1737304234902,-500.0,0.00020171,2]
[349573990,1737304234911,-817.19,0.00020171,2]
[349573992,1737304234920,-500.0,0.00020171,2]
[349573994,1737304234930,-1845.79,0.00020171,2]
[349573996,1737304234939,-500.0,0.00020171,2]
[349573998,1737304234949,-500.0,0.00020171,2]
[349574000,1737304234959,-500.0,0.00020171,2]
[349574002,1737304234969,-500.0,0.00020171,2]
[349574004,1737304234979,-1268.47,0.00020171,2]
[349574006,1737304234988,-500.0,0.00020171,2]
[349574008,1737304234998,-500.0,0.00020171,2]
[349574010,1737304235008,-500.0,0.00020171,2]
[349574012,1737304235017,-500.0,0.00020171,2]
[349574014,1737304235027,-500.0,0.00020171,2]
[349574017,1737304235037,-500.0,0.00020171,2]
[349574018,1737304235046,-1827.32,0.00020171,2]
[349574020,1737304235054,-500.0,0.00020171,2]
[349574022,1737304235064,-503.95,0.00020171,2]
[349574024,1737304235073,-500.0,0.00020171,2]
[349574026,1737304235082,-614.01,0.00020171,2]
[349574028,1737304235092,-500.0,0.00020171,2]
[349574030,1737304235101,-500.0,0.00020171,2]
[349574032,1737304235110,-500.0,0.00020171,2]
[349574034,1737304235119,-819.67,0.00020171,2]
[349574036,1737304235133,-1180.63,0.00020171,2]
[349574038,1737304235142,-500.0,0.00020171,2]
[349574040,1737304235151,-500.0,0.00020171,2]
[349574042,1737304235160,-500.0,0.00020171,2]
[349574044,1737304235169,-780.82,0.00020171,2]
[349574046,1737304235179,-500.0,0.00020171,2]
[349574048,1737304235188,-500.0,0.00020171,2]
[349574050,1737304235198,-500.0,0.00020171,2]
[349574052,1737304235208,-500.0,0.00020171,2]
[349574054,1737304235217,-740.32,0.00020171,2]
[349574056,1737304235226,-149.93604887,0.00020171,2]
[349574059,1737304235245,-350.06395113,0.00020171,2]
[349574061,1737304235254,-500.0,0.00020171,2]
[349574063,1737304235263,-500.0,0.00020171,2]
[349574065,1737304235272,-500.0,0.00020171,2]
[349574067,1737304235281,-500.0,0.00020171,2]
[349574069,1737304235290,-747.74,0.00020171,2]
[349574071,1737304235299,-185.59,0.00020171,2]
[349574073,1737304235309,-500.0,0.00020171,2]
[349574075,1737304235318,-423.94139235,0.00020191,2]
[349574078,1737304235329,-1047.30958163,0.00020191,2]
[349574080,1737304235339,-200.0,0.000202,7]
[349574082,1737304235350,-500.0,0.00020271,2]
[349574084,1737304235360,-500.0,0.00020271,2]
[349574086,1737304235369,-500.0,0.00020271,2]
[349574088,1737304235382,-500.0,0.00020271,2]
[349574090,1737304235391,-493.08,0.00020271,2]
[349574092,1737304235401,-500.0,0.00020271,2]
[349574094,1737304235411,-500.0,0.00020271,2]
[349574095,1737304235420,-500.0,0.00020271,2]
[349574098,1737304235433,-576.26,0.00020271,2]
[349574100,1737304235443,-500.0,0.00020271,2]
[349574101,1737304235452,-500.0,0.00020271,2]
[349574104,1737304235462,-574.77,0.00020271,2]
[349574106,1737304235471,-500.0,0.00020271,2]
[349574108,1737304235481,-580.14241339,0.00020271,2]
[349574110,1737304235490,-500.0,0.00020271,2]
[349574112,1737304235499,-330.71,0.00020271,2]
[349574114,1737304235509,-500.0,0.00020271,2]
[349574115,1737304235518,-500.0,0.00020271,2]
[349574117,1737304235528,-500.0,0.00020271,2]
[349574119,1737304235537,-500.0,0.00020271,2]
[349574121,1737304235546,-500.0,0.00020271,2]
[349574124,1737304235556,-546.14,0.00020271,2]
[349574125,1737304235565,-500.0,0.00020271,2]
[349574127,1737304235574,-500.0,0.00020271,2]
[349574129,1737304235582,-520.38,0.00020271,2]
[349574131,1737304235592,-352.73160498,0.00020271,2]
[349574134,1737304235604,-147.26839502,0.00020271,2]
[349574136,1737304235613,-500.0,0.00020271,2]
[349574138,1737304235623,-500.0,0.00020271,2]
[349574140,1737304235633,-974.58,0.00020271,2]
[349574142,1737304235642,-500.0,0.00020271,2]
[349574144,1737304235651,-500.0,0.00020271,2]
[349574146,1737304235660,-500.0,0.00020271,2]
[349574148,1737304235669,-500.0,0.00020271,2]
[349574149,1737304235679,-500.0,0.00020271,2]
[349574151,1737304235688,-500.0,0.00020271,2]
[349574153,1737304235697,-500.0,0.00020271,2]
[349574155,1737304235706,-500.0,0.00020271,2]
[349574157,1737304235715,-959.32,0.00020271,2]
[349574159,1737304235725,-222.48979841,0.00020271,2]
[349574162,1737304235736,-1692.04020159,0.00020271,2]
[349574164,1737304235745,-500.0,0.00020271,2]
[349574166,1737304235754,-500.0,0.00020271,2]
[349574168,1737304235764,-500.0,0.00020271,2]
[349574170,1737304235773,-1332.25,0.00020271,2]
[349574172,1737304235782,-500.0,0.00020271,2]
[349574174,1737304235792,-500.0,0.00020271,2]
[349574176,1737304235801,-609.53032148,0.00020271,2]
[349574178,1737304235810,-500.0,0.00020271,2]
[349574179,1737304235819,-500.0,0.00020271,2]
[349574181,1737304235829,-500.0,0.00020271,2]
[349574184,1737304235839,-500.0,0.00020272,2]
[349574186,1737304235849,-500.0,0.00020272,2]
[349574188,1737304235859,-500.0,0.00020272,2]
[349574190,1737304235869,-165.14,0.00020272,2]
[349574192,1737304235881,-500.0,0.00020272,2]
[349574194,1737304235890,-2426.0,0.000203,2]
[349574196,1737304235899,-500.0,0.000203,7]
[349574198,1737304235909,-1471.25097398,0.00020333,2]
[349574199,1737304235918,-467.0,0.00020339,2]
[349574202,1737304235930,-150.0,0.00020344,2]
[349574204,1737304235939,-5000.0,0.00020345,2]
[349574206,1737304235949,-1133.52118464,0.00020345,2]
[349574207,1737304235958,-200.0,0.00020352,2]
[349574209,1737304235967,-103.37955266,0.000204,7]
[349574212,1737304235983,-500.0,0.00019897,2]
[349574214,1737304235992,-696.62044734,0.000204,7]
[349574216,1737304236001,-443.7974135,0.00020414,2]
[349574219,1737304236016,-175.29336772,0.00020414,2]
[349574221,1737304236025,-453.1832,0.00020445,2]
[349574223,1737304236035,-216.727777,0.00020445,2]
[349574225,1737304236045,-500.0,0.00020445,2]
[349574226,1737304236054,-500.0,0.00020445,2]
[349574228,1737304236063,-520.92,0.00020445,2]
[349574231,1737304236072,-500.0,0.00020445,2]
[349574233,1737304236081,-868.88,0.00020445,2]
[349574235,1737304236090,-500.0,0.00020445,2]
[349574236,1737304236099,-747.56,0.00020445,2]
[349574238,1737304236108,-752.5,0.00020445,2]
[349574240,1737304236118,-465.315771,0.00020445,2]
[349574242,1737304236130,-500.0,0.00020445,2]
[349574245,1737304236140,-949.29,0.00020445,2]
[349574247,1737304236149,-500.0,0.00020445,2]
[349574248,1737304236160,-858.3,0.00020445,2]
[349574250,1737304236169,-500.0,0.00020445,2]
[349574252,1737304236178,-500.0,0.00020445,2]
[349574254,1737304236188,-500.0,0.00020445,2]
[349574256,1737304236198,-1234.62,0.00020445,2]
[349574259,1737304236208,-500.0,0.00020445,2]
[349574261,1737304236219,-817.19,0.00020445,2]
[349574263,1737304236229,-500.0,0.00020445,2]
[349574265,1737304236239,-1845.79,0.00020445,2]
[349574266,1737304236248,-596.81,0.00020445,2]
[349574268,1737304236257,-500.0,0.00020445,2]
[349574270,1737304236267,-500.0,0.00020445,2]
[349574272,1737304236276,-500.0,0.00020445,2]
[349574274,1737304236286,-1268.47,0.00020445,2]
[349574276,1737304236295,-500.0,0.00020445,2]
[349574278,1737304236305,-500.0,0.00020445,2]
[349574280,1737304236314,-500.0,0.00020445,2]
[349574283,1737304236324,-369.21612941,0.00020445,2]
[349574285,1737304236333,-500.0,0.00020445,2]
[349574287,1737304236345,-500.0,0.00020445,2]
[349574289,1737304236358,-1827.32,0.00020445,2]
[349574291,1737304236367,-500.0,0.00020445,2]
[349574293,1737304236383,-503.95,0.00020445,2]
[349574295,1737304236393,-500.0,0.00020445,2]
[349574297,1737304236402,-614.01,0.00020445,2]
[349574299,1737304236412,-500.0,0.00020445,2]
[349574301,1737304236422,-500.0,0.00020445,2]
[349574303,1737304236433,-500.0,0.00020445,2]
[349574305,1737304236443,-819.67,0.00020445,2]
[349574307,1737304236452,-1180.63,0.00020445,2]
[349574309,1737304236462,-500.0,0.00020445,2]
[349574311,1737304236471,-500.0,0.00020445,2]
[349574313,1737304236480,-500.0,0.00020445,2]
[349574315,1737304236490,-500.0,0.00020445,2]
[349574317,1737304236499,-780.82,0.00020445,2]
[349574319,1737304236510,-500.0,0.00020445,2]
[349574321,1737304236520,-500.0,0.00020445,2]
[349574323,1737304236529,-740.32,0.00020445,2]
[349574325,1737304236538,-500.0,0.00020445,2]
[349574327,1737304236547,-500.0,0.00020445,2]
[349574329,1737304236556,-500.0,0.00020445,2]
[349574331,1737304236565,-500.0,0.00020445,2]
[349574333,1737304236574,-500.0,0.00020445,2]
[349574335,1737304236583,-747.74,0.00020445,2]
[349574337,1737304236593,-500.0,0.00020445,2]
[349574339,1737304236601,-329.12,0.00020473,2]
[349574341,1737304236610,-1471.25097398,0.00020475,2]
[349574343,1737304236619,-619.09078122,0.00020495,2]
[349574345,1737304236633,-1000.0,0.000205,7]
[349574347,1737304236643,-500.0,0.00020545,2]
[349574349,1737304236652,-500.0,0.00020545,2]
[349574351,1737304236661,-500.0,0.00020545,2]
[349574352,1737304236671,-500.0,0.00020545,2]
[349574353,1737304236680,-500.0,0.00020545,2]
[349574354,1737304236688,-500.0,0.00020545,2]
[349574355,1737304236697,-500.0,0.00020545,2]
[349574356,1737304236706,-500.0,0.00020545,2]
[349574357,1737304236714,-458.04458813,0.00020545,2]
[349574358,1737304236727,-41.95541187,0.00020545,2]
[349574359,1737304236736,-500.0,0.00020545,2]
[349574360,1737304236745,-500.0,0.00020545,2]
[349574362,1737304236753,-500.0,0.00020545,2]
[349574363,1737304236762,-513.58730241,0.00020545,2]
[349574364,1737304236771,-500.0,0.00020545,2]
[349574365,1737304236780,-500.0,0.00020545,2]
[349574367,1737304236789,-500.0,0.00020545,2]
[349574369,1737304236798,-302.82335107,0.00020545,2]
[349574371,1737304236807,-500.0,0.00020545,2]
[349574372,1737304236815,-500.0,0.00020545,2]
[349574374,1737304236825,-500.0,0.00020545,2]
[349574375,1737304236834,-500.0,0.00020545,2]
[349574376,1737304236843,-500.0,0.00020545,2]
[349574377,1737304236852,-500.0,0.00020545,2]
[349574378,1737304236861,-500.0,0.00020545,2]
[349574379,1737304236870,-500.0,0.00020545,2]
[349574380,1737304236884,-500.0,0.00020545,2]
[349574381,1737304236895,-500.0,0.00020545,2]
[349574382,1737304236905,-500.0,0.00020545,2]
[349574383,1737304236914,-500.0,0.00020545,2]
[349574384,1737304236923,-500.0,0.00020545,2]
[349574385,1737304236933,-500.0,0.00020545,2]
[349574386,1737304236942,-500.0,0.00020545,2]
[349574387,1737304236951,-500.0,0.00020545,2]
[349574388,1737304236960,-500.0,0.00020545,2]
[349574389,1737304236970,-500.0,0.00020545,2]
[349574390,1737304236980,-500.0,0.00020545,2]
[349574391,1737304236989,-500.0,0.00020545,2]
[349574392,1737304236998,-500.0,0.00020545,2]
[349574393,1737304237008,-500.0,0.00020545,2]
[349574394,1737304237018,-500.0,0.00020545,2]
[349574395,1737304237028,-500.0,0.00020545,2]
[349574396,1737304237037,-500.0,0.00020545,2]
[349574397,1737304237047,-500.0,0.00020545,2]
[349574398,1737304237057,-500.0,0.00020545,2]
[349574399,1737304237067,-500.0,0.00020545,2]
[349574400,1737304237076,-500.0,0.00020545,2]
[349574401,1737304237086,-500.0,0.00020545,2]
[349574402,1737304237096,-500.0,0.00020545,2]
[349574403,1737304237106,-500.0,0.00020545,2]
[349574404,1737304237116,-500.0,0.00020545,2]
[349574405,1737304237128,-500.0,0.00020545,2]
[349574406,1737304237138,-500.0,0.00020545,2]
[349574407,1737304237148,-500.0,0.00020545,2]
[349574408,1737304237158,-500.0,0.00020545,2]
[349574409,1737304237168,-500.0,0.00020545,2]
[349574410,1737304237179,-500.0,0.00020545,2]
[349574411,1737304237192,-306.79046239,0.00020545,2]
[349574412,1737304237202,-500.0,0.00020545,2]
[349574413,1737304237211,-314.58,0.00020545,2]
[349574414,1737304237221,-500.0,0.00020545,2]
[349574415,1737304237231,-420.68778178,0.00020545,2]
[349574416,1737304237241,-500.0,0.00020545,2]
[349574417,1737304237250,-500.0,0.00020545,2]
[349574418,1737304237259,-500.0,0.00020545,2]
[349574419,1737304237269,-500.0,0.00020545,2]
[349574420,1737304237278,-500.0,0.00020545,2]
[349574421,1737304237287,-500.0,0.00020545,2]
[349574422,1737304237297,-500.0,0.00020545,2]
[349574423,1737304237306,-500.0,0.00020545,2]
[349574424,1737304237316,-500.0,0.00020545,2]
[349574425,1737304237326,-336.81214281,0.00020545,2]
[349574426,1737304237336,-500.0,0.00020545,2]
[349574427,1737304237350,-500.0,0.00020545,2]
[349574428,1737304237359,-500.0,0.00020545,2]
[349574429,1737304237368,-500.0,0.00020545,2]
[349574430,1737304237381,-500.0,0.00020545,2]
[349574431,1737304237391,-574.77,0.00020545,2]
[349574432,1737304237401,-515.94904507,0.00020545,2]
[349574433,1737304237411,-500.0,0.00020545,2]
[349574434,1737304237422,-514.0791678,0.00020545,2]
[349574435,1737304237432,-500.0,0.00020545,2]
[349574436,1737304237442,-500.0,0.00020545,2]
[349574437,1737304237452,-500.0,0.00020545,2]
[349574438,1737304237461,-500.0,0.00020545,2]
[349574439,1737304237471,-500.0,0.00020545,2]
[349574440,1737304237480,-518.80951597,0.00020545,2]
[349574441,1737304237490,-500.0,0.00020545,2]
[349574442,1737304237499,-500.0,0.00020545,2]
[349574443,1737304237509,-500.0,0.00020545,2]
[349574444,1737304237519,-500.0,0.00020545,2]
[349574445,1737304237528,-521.28547759,0.00020545,2]
[349574446,1737304237538,-500.0,0.00020545,2]
[349574449,1737304237709,-500.0,0.00020545,2]
[349574450,1737304237719,-500.0,0.00020545,2]
[349574451,1737304237729,-500.0,0.00020545,2]
[349574452,1737304237739,-546.14,0.00020545,2]
[349574453,1737304237748,-541.59655782,0.00020545,2]
[349574454,1737304237757,-500.0,0.00020545,2]
[349574455,1737304237767,-500.0,0.00020545,2]
[349574456,1737304237777,-500.0,0.00020545,2]
[349574457,1737304237787,-500.0,0.00020545,2]
[349574458,1737304237797,-506.30111724,0.00020545,2]
[349574459,1737304237807,-500.0,0.00020545,2]
[349574460,1737304237817,-500.0,0.00020545,2]
[349574461,1737304237827,-520.38,0.00020545,2]
[349574462,1737304237837,-500.0,0.00020545,2]
[349574463,1737304237848,-500.0,0.00020545,2]
[349574464,1737304237858,-500.0,0.00020545,2]
[349574465,1737304237868,-500.0,0.00020545,2]
[349574466,1737304237879,-500.0,0.00020545,2]
[349574467,1737304237889,-500.0,0.00020545,2]
[349574468,1737304237898,-500.0,0.00020545,2]
[349574469,1737304237908,-974.58,0.00020545,2]
[349574470,1737304237918,-500.0,0.00020545,2]
[349574471,1737304237928,-500.0,0.00020545,2]
[349574472,1737304237938,-500.0,0.00020545,2]
[349574473,1737304237948,-500.0,0.00020545,2]
[349574474,1737304237958,-500.0,0.00020545,2]
[349574475,1737304237968,-500.0,0.00020545,2]
[349574476,1737304237978,-447.09,0.00020545,2]
[349574477,1737304237987,-581.69,0.00020545,2]
[349574478,1737304237997,-500.0,0.00020545,2]
[349574479,1737304238007,-500.0,0.00020545,2]
[349574480,1737304238016,-500.0,0.00020545,2]
[349574481,1737304238026,-554.87367715,0.00020545,2]
[349574482,1737304238035,-500.0,0.00020545,2]
[349574483,1737304238044,-627.352816,0.00020545,2]
[349574484,1737304238054,-959.32,0.00020545,2]
[349574485,1737304238064,-429.95265698,0.00020545,2]
[349574486,1737304238073,-1914.53,0.00020545,2]
[349574487,1737304238082,-500.0,0.00020545,2]
[349574488,1737304238091,-500.0,0.00020545,2]
[349574489,1737304238101,-500.0,0.00020545,2]
[349574490,1737304238110,-500.0,0.00020545,2]
[349574491,1737304238119,-500.0,0.00020545,2]
[349574492,1737304238133,-500.0,0.00020545,2]
[349574493,1737304238143,-1332.25,0.00020545,2]
[349574494,1737304238152,-500.0,0.00020545,2]
[349574495,1737304238161,-500.0,0.00020545,2]
[349574496,1737304238170,-216.10760989,0.00020545,2]
[349574497,1737304238180,-500.0,0.00020545,2]
[349574498,1737304238189,-500.0,0.00020545,2]
[349574499,1737304238198,-500.0,0.00020545,2]
[349574500,1737304238208,-500.0,0.00020545,2]
[349574501,1737304238217,-500.0,0.00020545,2]
[349574502,1737304238227,-500.0,0.00020545,2]
[349574503,1737304238236,-633.84442698,0.00020545,2]
[349574504,1737304238245,-500.0,0.00020545,2]
[349574505,1737304238254,-500.0,0.00020545,2]
[349574506,1737304238263,-500.0,0.00020545,2]
[349574507,1737304238272,-500.0,0.00020545,2]
[349574508,1737304238281,-150.0,0.00020545,2]
[349574509,1737304238290,-500.0,0.00020545,2]
[349574510,1737304238300,-4945.15299821,0.00020545,2]
[349574511,1737304238309,-500.0,0.00020545,2]
[349574512,1737304238318,-500.0,0.00020545,2]
[349574513,1737304238327,-500.0,0.00020545,2]
[349574515,1737304238336,-500.0,0.00020545,2]
[349574516,1737304238346,-500.0,0.00020545,2]
[349574518,1737304238356,-500.0,0.00020545,2]
[349574520,1737304238365,-500.0,0.00020545,2]
[349574522,1737304238378,-500.0,0.00020545,2]
[349574524,1737304238388,-500.0,0.00020545,2]
[349574526,1737304238398,-500.0,0.00020546,2]
[349574528,1737304238408,-500.0,0.00020546,2]
[349574530,1737304238417,-500.0,0.00020546,2]
[349574532,1737304238428,-500.0,0.00020546,2]
[349574533,1737304238438,-619.09078122,0.00020576,2]
[349574534,1737304238448,-408.1025635,0.0002058,2]
[349574535,1737304238457,-421.76103696,0.00020592,2]
[349574536,1737304238467,-1300.0,0.000206,7]
[349574537,1737304238476,-1471.25097398,0.00020616,2]
[349574538,1737304238486,-619.09078122,0.00020657,2]
[349574540,1737304238495,-200.0,0.000207,7]
[349574541,1737304238505,-216.727777,0.00020719,2]
[349574543,1737304238515,-500.0,0.00020719,2]
[349574544,1737304238525,-500.0,0.00020719,2]
[349574545,1737304238535,-520.92,0.00020719,2]
[349574546,1737304238545,-500.0,0.00020719,2]
[349574547,1737304238555,-868.88,0.00020719,2]
[349574548,1737304238565,-500.0,0.00020719,2]
[349574549,1737304238574,-747.56,0.00020719,2]
[349574550,1737304238584,-752.5,0.00020719,2]
[349574551,1737304238594,-465.315771,0.00020719,2]
[349574552,1737304238604,-500.0,0.00020719,2]
[349574553,1737304238614,-949.29,0.00020719,2]
[349574554,1737304238624,-500.0,0.00020719,2]
[349574555,1737304238635,-858.3,0.00020719,2]
[349574556,1737304238645,-500.0,0.00020719,2]
[349574557,1737304238655,-500.0,0.00020719,2]
[349574558,1737304238665,-474.91540119,0.00020719,2]
[349574559,1737304238680,-25.08459881,0.00020719,2]
[349574560,1737304238690,-1234.62,0.00020719,2]
[349574561,1737304238700,-500.0,0.00020719,2]
[349574562,1737304238709,-817.19,0.00020719,2]
[349574563,1737304238719,-500.0,0.00020719,2]
[349574564,1737304238729,-1845.79,0.00020719,2]
[349574565,1737304238738,-500.0,0.00020719,2]
[349574566,1737304238748,-500.0,0.00020719,2]
[349574567,1737304238757,-500.0,0.00020719,2]
[349574568,1737304238767,-1268.47,0.00020719,2]
[349574569,1737304238777,-500.0,0.00020719,2]
[349574570,1737304238788,-500.0,0.00020719,2]
[349574571,1737304238798,-500.0,0.00020719,2]
[349574572,1737304238807,-500.0,0.00020719,2]
[349574573,1737304238817,-500.0,0.00020719,2]
[349574574,1737304238827,-1827.32,0.00020719,2]
[349574575,1737304238837,-500.0,0.00020719,2]
[349574576,1737304238847,-503.95,0.00020719,2]
[349574577,1737304238856,-500.0,0.00020719,2]
[349574578,1737304238866,-614.01,0.00020719,2]
[349574579,1737304238879,-500.0,0.00020719,2]
[349574580,1737304238890,-500.0,0.00020719,2]
[349574581,1737304238900,-500.0,0.00020719,2]
[349574582,1737304238911,-819.67,0.00020719,2]
[349574583,1737304238921,-1180.63,0.00020719,2]
[349574584,1737304238931,-500.0,0.00020719,2]
[349574585,1737304238941,-500.0,0.00020719,2]
[349574586,1737304238951,-500.0,0.00020719,2]
[349574587,1737304238961,-500.0,0.00020719,2]
[349574588,1737304238971,-780.82,0.00020719,2]
[349574589,1737304238982,-500.0,0.00020719,2]
[349574590,1737304238991,-500.0,0.00020719,2]
[349574591,1737304239000,-740.32,0.00020719,2]
[349574592,1737304239010,-618.1967881,0.00020719,2]
[349574593,1737304239020,-500.0,0.00020719,2]
[349574594,1737304239030,-500.0,0.00020719,2]
[349574595,1737304239040,-500.0,0.00020719,2]
[349574596,1737304239050,-71.73084538,0.00020719,2]
[349574597,1737304239368,-971.0,0.00019897,2]
[349574598,1737304239379,-500.0,0.00020171,2]
[349574599,1737304239390,-971.0,0.00020171,2]
[349574600,1737304239400,-500.0,0.00020445,2]
[349574601,1737304239410,-971.0,0.00020445,2]
[349574602,1737304239421,-572.78915462,0.00020719,2]
[349574603,1737304239432,-747.74,0.00020719,2]
[349574604,1737304239442,-500.0,0.00020719,2]
[349574605,1737304239451,-500.0,0.00020719,2]
[349574606,1737304239460,-122.71399749,0.00020719,2]
[349574607,1737304239472,-848.28600251,0.00020719,2]
[349574608,1737304239481,-3166.5811,0.0002072,2]
[349574609,1737304239491,-180.4424,0.0002072,2]
[349574610,1737304239500,-500.0,0.00020728,2]
[349574611,1737304239511,-500.0,0.00020728,2]
[349574612,1737304239520,-493.0,0.00020728,2]
[349574613,1737304239530,-200.0,0.00020728,2]
[349574614,1737304239539,-200.0,0.00020728,2]
[349574615,1737304239550,-200.0,0.00020728,2]
[349574616,1737304239560,-200.0,0.00020728,2]
[349574617,1737304239569,-200.0,0.00020728,2]
[349574618,1737304239579,-619.09078122,0.00020738,2]
[349574619,1737304239588,-1471.25097398,0.00020758,2]
[349574620,1737304239597,-200.0,0.000208,7]
[349574621,1737304239607,-500.0,0.00020818,2]
[349574622,1737304239617,-232.35008086,0.00020819,2]
[349574623,1737304239626,-500.0,0.00020819,2]
[349574624,1737304239636,-500.0,0.00020819,2]
[349574625,1737304239646,-571.87675332,0.00020819,2]
[349574626,1737304239656,-500.0,0.00020819,2]
[349574627,1737304239666,-500.0,0.00020819,2]
[349574628,1737304239676,-500.0,0.00020819,2]
[349574629,1737304239685,-500.0,0.00020819,2]
[349574630,1737304239696,-500.0,0.00020819,2]
[349574631,1737304239705,-500.0,0.00020819,2]
[349574632,1737304239714,-500.0,0.00020819,2]
[349574633,1737304239723,-500.0,0.00020819,2]
[349574634,1737304239732,-500.0,0.00020819,2]